fUSD/lending_fUSD_20260226
["ID","MTS","AMOUNT","RATE_DAILY","PERIOD"]
[406699586,1772099432758,-637.41166189,8.362e-05,2]
[406699587,1772099432768,-195.0,8.362e-05,2]
[406699589,1772099432777,-250.0,8.362e-05,2]
[406699591,1772099432787,-3147.61265801,8.362e-05,2]
[406699592,1772099432796,-150.0,8.362e-05,2]
[406699594,1772099432805,-150.0,8.362e-05,2]
[406699596,1772099432815,-150.0,8.362e-05,2]
[406699598,1772099432823,-150.0,8.362e-05,2]
[406699600,1772099432832,-150.0,8.362e-05,2]
[406699602,1772099432841,-150.0,8.362e-05,2]
[406699604,1772099432850,-150.0,8.362e-05,2]
[406699606,1772099432859,-150.0,8.362e-05,2]
[406699608,1772099432868,-150.0,8.362e-05,2]
[406699610,1772099432876,-150.0,8.362e-05,2]
[406699612,1772099432885,-150.0,8.362e-05,2]
[406699614,1772099432895,-150.0,8.362e-05,2]
[406699616,1772099432903,-150.0,8.362e-05,2]
[406699618,1772099432912,-500.0,8.388e-05,2]
[406699620,1772099432922,-209.05,8.4e-05,2]
[406699622,1772099432931,-150.0,8.417e-05,2]
[406699624,1772099432941,-1246.0,8.418e-05,2]
[406699626,1772099432950,-233.0,8.432e-05,2]
[406699627,1772099432959,-1680.0,8.436e-05,2]
[406699629,1772099432968,-359.0,8.437e-05,2]
[406699631,1772099432977,-884.0,8.455e-05,2]
[406699633,1772099432986,-250.0,8.471e-05,2]
[406699635,1772099432996,-573.04,8.526e-05,2]
[406699637,1772099433005,-17641.39020373,8.55e-05,2]
[406699639,1772099433014,-1411.19,8.552e-05,2]
[406699641,1772099433022,-500.0,8.553e-05,2]
[406699643,1772099433032,-499151.1175609,8.556e-05,2]
[406699645,1772099433041,-25452.0305161,8.556e-05,2]
[406699647,1772099433050,-1502.82666669,8.56e-05,2]
[406699649,1772099433058,-4520.3,8.63e-05,2]
[406699651,1772099433067,-500.0,8.662e-05,2]
[406699653,1772099433077,-1000.0,8.762e-05,2]
[406699655,1772099433086,-155.0,8.763e-05,2]
[406699656,1772099433094,-1136.63172883,8.8e-05,2]
[406699658,1772099433103,-2112.39353023,8.8e-05,2]
[406699660,1772099433112,-2897.35094228,8.8e-05,2]
[406699662,1772099433121,-910.25146209,8.8e-05,2]
[406699664,1772099433131,-1662.28949167,8.8e-05,2]
[406699666,1772099433140,-573.04,8.8e-05,2]
[406699668,1772099433150,-500.0,8.809e-05,2]
[406699670,1772099433159,-261.46734568,8.809e-05,2]
[406699672,1772099433168,-511.58282486,8.809e-05,2]
[406699674,1772099433177,-181.20850474,8.809e-05,2]
[406699676,1772099433186,-500.0,8.809e-05,2]
[406699678,1772099433196,-500.0,8.809e-05,2]
[406699680,1772099433205,-390.12396035,8.809e-05,2]
[406699682,1772099433214,-500.0,8.809e-05,2]
[406699684,1772099433224,-500.0,8.809e-05,2]
[406699686,1772099433233,-500.0,8.809e-05,2]
[406699688,1772099433242,-500.0,8.809e-05,2]
[406699690,1772099433251,-500.0,8.809e-05,2]
[406699691,1772099433262,-500.0,8.809e-05,2]
[406699693,1772099433271,-500.0,8.809e-05,2]
[406699695,1772099433280,-500.0,8.809e-05,2]
[406699697,1772099433290,-500.0,8.809e-05,2]
[406699699,1772099433299,-500.0,8.809e-05,2]
[406699701,1772099433308,-500.0,8.809e-05,2]
[406699703,1772099433318,-500.0,8.809e-05,2]
[406699705,1772099433329,-500.0,8.809e-05,2]
[406699707,1772099433338,-500.0,8.809e-05,2]
[406699709,1772099433348,-495.66981606,8.809e-05,2]
[406699711,1772099433358,-500.0,8.809e-05,2]
[406699713,1772099433368,-500.0,8.809e-05,2]
[406699715,1772099433377,-500.0,8.809e-05,2]
[406699717,1772099433386,-200.07031631,8.809e-05,2]
[406699719,1772099433397,-500.0,8.809e-05,2]
[406699721,1772099433406,-500.0,8.809e-05,2]
[406699723,1772099433416,-500.0,8.809e-05,2]
[406699725,1772099433425,-500.0,8.809e-05,2]
[406699727,1772099433435,-500.0,8.809e-05,2]
[406699729,1772099433445,-500.0,8.809e-05,2]
[406699731,1772099433457,-500.0,8.809e-05,2]
[406699733,1772099433466,-500.0,8.809e-05,2]
[406699735,1772099433476,-500.0,8.809e-05,2]
[406699737,1772099433485,-500.0,8.809e-05,2]
[406699739,1772099433495,-500.0,8.809e-05,2]
[406699741,1772099433506,-500.0,8.809e-05,2]
[406699743,1772099433516,-500.0,8.809e-05,2]
[406699745,1772099433525,-500.0,8.809e-05,2]
[406699747,1772099433535,-500.0,8.809e-05,2]
[406699749,1772099433544,-500.0,8.809e-05,2]
[406699751,1772099433554,-500.0,8.809e-05,2]
[406699753,1772099433564,-500.0,8.809e-05,2]
[406699755,1772099433573,-500.0,8.809e-05,2]
[406699757,1772099433583,-500.0,8.809e-05,2]
[406699759,1772099433593,-500.0,8.809e-05,2]
[406699761,1772099433602,-500.0,8.809e-05,2]
[406699763,1772099433612,-500.0,8.809e-05,2]
[406699765,1772099433622,-500.0,8.809e-05,2]
[406699767,1772099433631,-500.0,8.809e-05,2]
[406699769,1772099433641,-500.0,8.809e-05,2]
[406699771,1772099433650,-500.0,8.809e-05,2]
[406699773,1772099433660,-500.0,8.809e-05,2]
[406699775,1772099433670,-500.0,8.809e-05,2]
[406699777,1772099433679,-500.0,8.809e-05,2]
[406699779,1772099433689,-500.0,8.809e-05,2]
[406699781,1772099433699,-500.0,8.809e-05,2]
[406699783,1772099433708,-500.0,8.809e-05,2]
[406699785,1772099433718,-500.0,8.809e-05,2]
[406699787,1772099433727,-500.0,8.809e-05,2]
[406699789,1772099433737,-500.0,8.809e-05,2]
[406699790,1772099433746,-500.0,8.809e-05,2]
[406699792,1772099433756,-500.0,8.809e-05,2]
[406699794,1772099433765,-500.0,8.809e-05,2]
[406699796,1772099433776,-500.0,8.809e-05,2]
[406699798,1772099433785,-500.0,8.809e-05,2]
[406699800,1772099433795,-500.0,8.809e-05,2]
[406699802,1772099433804,-500.0,8.809e-05,2]
[406699804,1772099433814,-500.0,8.809e-05,2]
[406699806,1772099433823,-500.0,8.809e-05,2]
[406699808,1772099433833,-500.0,8.809e-05,2]
[406699810,1772099433843,-500.0,8.809e-05,2]
[406699812,1772099433851,-500.0,8.809e-05,2]
[406699814,1772099433862,-500.0,8.809e-05,2]
[406699816,1772099433871,-500.0,8.809e-05,2]
[406699818,1772099433880,-500.0,8.809e-05,2]
[406699820,1772099433889,-500.0,8.809e-05,2]
[406699822,1772099433899,-500.0,8.809e-05,2]
[406699824,1772099433912,-240.06394553,8.809e-05,2]
[406699825,1772099434052,-500.0,8.809e-05,2]
[406699826,1772099434061,-500.0,8.809e-05,2]
[406699827,1772099434070,-500.0,8.809e-05,2]
[406699828,1772099434079,-500.0,8.809e-05,2]
[406699829,1772099434088,-500.0,8.809e-05,2]
[406699830,1772099434097,-500.0,8.809e-05,2]
[406699832,1772099434105,-500.0,8.809e-05,2]
[406699834,1772099434115,-574.89580558,8.809e-05,2]
[406699836,1772099434125,-500.0,8.809e-05,2]
[406699838,1772099434135,-574.89580558,8.809e-05,2]
[406699840,1772099434144,-563.63148188,8.809e-05,2]
[406699842,1772099434153,-500.0,8.809e-05,2]
[406699844,1772099434163,-500.0,8.809e-05,2]
[406699846,1772099434172,-500.0,8.809e-05,2]
[406699848,1772099434181,-500.0,8.809e-05,2]
[406699849,1772099434190,-500.0,8.809e-05,2]
[406699850,1772099434199,-473.21656198,8.809e-05,2]
[406699851,1772099434208,-500.0,8.809e-05,2]
[406699852,1772099434217,-455.64496853,8.809e-05,2]
[406699853,1772099434227,-429.03719494,8.809e-05,2]
[406699854,1772099434236,-1272.16433066,8.809e-05,2]
[406699855,1772099434245,-1272.16433066,8.809e-05,2]
[406699856,1772099434253,-258.25419983,8.809e-05,2]
[406699857,1772099434262,-155.485,8.905e-05,2]
[406699858,1772099434271,-273.985174,8.906e-05,2]
[406699859,1772099434280,-271359.0343135,8.906e-05,2]
[406699860,1772099434289,-151.0,8.906e-05,2]
[406699861,1772099434298,-151.0,8.906e-05,2]
[406699862,1772099434307,-151.0,8.906e-05,2]
[406699863,1772099434316,-151.0,8.906e-05,2]
[406699864,1772099434326,-151.0,8.906e-05,2]
[406699865,1772099434335,-151.0,8.906e-05,2]
[406699866,1772099434344,-151.0,8.906e-05,2]
[406699867,1772099434353,-234.465008,8.906e-05,2]
[406699868,1772099434362,-151.0,8.906e-05,2]
[406699869,1772099434371,-151.0,8.906e-05,2]
[406699870,1772099434379,-151.0,8.906e-05,2]
[406699871,1772099434388,-369.540161,8.906e-05,2]
[406699872,1772099434397,-369.540161,8.906e-05,2]
[406699873,1772099434406,-369.540161,8.906e-05,2]
[406699874,1772099434415,-369.540161,8.906e-05,2]
[406699875,1772099434423,-137550.62068451,8.92e-05,2]
[406699876,1772099434432,-500.0,8.936e-05,2]
[406699877,1772099434441,-1004.67436263,8.974e-05,2]
[406699878,1772099434451,-225.94,9e-05,2]
[406699879,1772099434472,-166.66,9.03e-05,2]
[406699880,1772099434480,-573.04,9.074e-05,2]
[406699881,1772099434489,-255.0,9.137e-05,2]
[406699882,1772099434498,-874.83599649,9.2e-05,2]
[406699883,1772099434512,-1350.61138398,9.2e-05,2]
[406699884,1772099434520,-2537.99538204,9.2e-05,2]
[406699885,1772099434529,-3493.19353482,9.2e-05,2]
[406699886,1772099434537,-151.0,9.2e-05,2]
[406699887,1772099434546,-151.0,9.2e-05,2]
[406699888,1772099434555,-151.026065,9.2e-05,2]
[406699889,1772099434564,-369.540161,9.2e-05,2]
[406699890,1772099434573,-369.540161,9.2e-05,2]
[406699891,1772099434582,-369.540161,9.2e-05,2]
[406699892,1772099434591,-369.540161,9.2e-05,2]
[406699893,1772099434600,-151.0,9.2e-05,2]
[406699894,1772099434609,-204.036797,9.2e-05,2]
[406699895,1772099434617,-204.036797,9.2e-05,2]
[406699896,1772099434626,-204.036797,9.2e-05,2]
[406699897,1772099434635,-204.036797,9.2e-05,2]
[406699898,1772099434643,-500.0,9.21e-05,2]
[406699899,1772099434652,-2351.0,9.279e-05,2]
[406699900,1772099434661,-151.0,9.281e-05,2]
[406699901,1772099434670,-151.0,9.281e-05,2]
[406699902,1772099434679,-166.66,9.309e-05,2]
[406699903,1772099434689,-151.0,9.331e-05,2]
[406699904,1772099434698,-373.19905658,9.331e-05,2]
[406699905,1772099434707,-500.0,9.331e-05,2]
[406699906,1772099434717,-500.0,9.331e-05,2]
[406699907,1772099434727,-500.0,9.331e-05,2]
[406699908,1772099434736,-500.0,9.331e-05,2]
[406699909,1772099434746,-500.0,9.331e-05,2]
[406699910,1772099434755,-500.0,9.331e-05,2]
[406699911,1772099434764,-500.0,9.331e-05,2]
[406699912,1772099434774,-500.0,9.331e-05,2]
[406699913,1772099434783,-500.0,9.331e-05,2]
[406699914,1772099434793,-500.0,9.331e-05,2]
[406699915,1772099434802,-500.0,9.331e-05,2]
[406699916,1772099434812,-693.3919763,9.331e-05,2]
[406699917,1772099434821,-309.29654756,9.331e-05,2]
[406699918,1772099434830,-573.04,9.348e-05,2]
[406699919,1772099434840,-1000.0,9.359e-05,2]
[406699920,1772099434849,-719.04747942,9.386e-05,2]
[406699921,1772099434859,-745.65223616,9.441e-05,2]
[406699922,1772099434869,-500.0,9.484e-05,2]
[406699923,1772099434878,-773.2413689,9.496e-05,2]
[406699924,1772099434887,-1411.19,9.502e-05,2]
[406699925,1772099434896,-458518.33142996,9.522e-05,2]
[406699926,1772099434941,-40632.78613094,9.522e-05,2]
[406699927,1772099434951,-350.0,9.542e-05,2]
[406699928,1772099434960,-801.85129955,9.551e-05,2]
[406699929,1772099434969,-350.0,9.558e-05,2]
[406699930,1772099434979,-166.66,9.589e-05,2]
[406699931,1772099434988,-151.0,9.589e-05,2]
[406699932,1772099434997,-831.51979763,9.606e-05,2]
[406699933,1772099435007,-573.04,9.622e-05,2]
[406699934,1772099435017,-155.0,9.639e-05,2]
[406699935,1772099435026,-862.28603014,9.661e-05,2]
[406699936,1772099435036,-350.0,9.67e-05,2]
[406699937,1772099435045,-5679.1156451,9.676e-05,2]
[406699938,1772099435055,-894.19061326,9.716e-05,2]
[406699939,1772099435065,-350.0,9.731e-05,2]
[406699940,1772099435075,-500.0,9.758e-05,2]
[406699941,1772099435084,-927.27566595,9.771e-05,2]
[406699942,1772099435094,-5513.0,9.781e-05,2]
[406699943,1772099435103,-75985.86931003,9.781e-05,7]
[406699944,1772099435112,-173.14699767,9.781e-05,7]
[406699945,1772099435122,-62065.43391629,9.781e-05,7]
[406699946,1772099435134,-57395.68986486,9.781e-05,7]
[406699947,1772099435144,-151.0,9.781e-05,2]
[406699948,1772099435153,-369.540161,9.781e-05,2]
[406699949,1772099435163,-369.540161,9.781e-05,2]
[406699950,1772099435173,-369.540161,9.781e-05,2]
[406699951,1772099435183,-369.540161,9.781e-05,2]
[406699952,1772099435192,-151.0,9.781e-05,2]
[406699953,1772099435202,-204.036797,9.781e-05,2]
[406699954,1772099435212,-204.036797,9.781e-05,2]
[406699955,1772099435221,-204.036797,9.781e-05,2]
[406699956,1772099435231,-204.036797,9.781e-05,2]
[406699957,1772099435240,-151.0,9.781e-05,2]
[406699958,1772099435250,-151.0,9.781e-05,2]
[406699959,1772099435259,-151.0,9.781e-05,2]
[406699960,1772099435269,-155.0,9.796e-05,2]
[406699961,1772099435279,-961.58486559,9.826e-05,2]
[406699962,1772099435289,-350.0,9.857e-05,2]
[406699963,1772099435299,-350.0,9.857e-05,2]
[406699964,1772099435309,-166.66,9.869e-05,2]
[406699965,1772099435318,-151.0,9.879e-05,2]
[406699966,1772099435328,-997.16350561,9.881e-05,2]
[406699967,1772099435337,-573.07776369,9.896e-05,2]
[406699968,1772099435346,-1267.1819834,9.926e-05,2]
[406699969,1772099435356,-150.09339323,0.0001,2]
[406699970,1772099435366,-160.66,0.0001,2]
[406699971,1772099435376,-28019.0,0.0001,2]
[406699972,1772099435386,-224.77977962,0.0001,2]
[406699973,1772099435395,-484.93406409,0.0001,2]
[406699974,1772099435405,-1000.0,0.0001,2]
[406699975,1772099435415,-1000.0,0.0001,2]
[406699976,1772099435425,-1000.0,0.0001,2]
[406699977,1772099435435,-1000.0,0.0001,2]
[406699978,1772099435446,-1000.0,0.0001,2]
[406699979,1772099435456,-1000.0,0.0001,2]
[406699980,1772099435466,-755.48875966,0.0001,2]
[406699981,1772099435476,-151.0,0.0001,2]
[406699982,1772099435486,-151.0,0.0001,2]
[406699983,1772099435496,-151.0,0.0001,2]
[406699984,1772099435510,-151.0,0.0001,2]
[406699985,1772099435520,-151.0,0.0001,2]
[406699986,1772099435530,-151.0,0.0001,2]
[406699987,1772099435541,-151.0,0.0001,2]
[406699988,1772099435551,-151.0,0.0001,2]
[406699989,1772099435561,-151.0,0.0001,2]
[406699990,1772099435571,-151.0,0.0001,2]
[406699991,1772099435580,-151.0,0.0001,2]
[406699992,1772099435590,-151.0,0.0001,2]
[406699993,1772099435600,-151.0,0.0001,2]
[406699994,1772099435610,-151.0,0.0001,2]
[406699995,1772099435620,-151.0,0.0001,2]
[406699996,1772099435630,-151.0,0.0001,2]
[406699997,1772099435640,-151.0,0.0001,2]
[406699998,1772099435651,-151.0,0.0001,2]
[406699999,1772099435661,-151.0,0.0001,2]
[406700000,1772099435672,-151.0,0.0001,2]
[406700001,1772099435681,-151.0,0.0001,2]
[406700002,1772099435691,-151.0,0.0001,2]
[406700003,1772099435701,-151.0,0.0001,2]
[406700004,1772099435711,-151.0,0.0001,2]
[406700005,1772099435725,-151.0,0.0001,2]
[406700006,1772099435746,-500.0,0.0001,2]
[406700007,1772099435767,-151.0,0.0001,2]
[406700008,1772099435788,-500.0,0.0001,2]
[406700009,1772099435804,-151.0,0.0001,2]
[406700010,1772099435821,-500.0,0.0001,2]
[406700011,1772099435831,-151.0,0.0001,2]
[406700012,1772099435841,-151.0,0.0001,2]
[406700013,1772099435851,-500.0,0.0001,2]
[406700014,1772099435861,-151.0,0.0001,2]
[406700015,1772099435871,-500.0,0.0001,2]
[406700016,1772099435881,-151.0,0.0001,2]
[406700017,1772099435890,-500.0,0.0001,2]
[406700018,1772099435901,-151.0,0.0001,2]
[406700019,1772099435912,-500.0,0.0001,2]
[406700020,1772099435922,-500.0,0.0001,2]
[406700021,1772099435932,-151.0,0.0001,2]
[406700022,1772099435943,-500.0,0.0001,2]
[406700023,1772099435953,-500.0,0.0001,2]
[406700024,1772099435963,-151.0,0.0001,2]
[406700025,1772099435972,-500.0,0.0001,2]
[406700026,1772099435982,-151.0,0.0001,2]
[406700027,1772099435992,-900.0,0.0001,3]
[406700028,1772099436002,-500.0,0.0001,2]
[406700029,1772099436013,-500.0,0.0001,2]
[406700030,1772099436024,-151.0,0.0001,2]
[406700031,1772099436152,-500.0,0.0001,2]
[406700032,1772099436162,-151.0,0.0001,2]
[406700033,1772099436172,-500.0,0.0001,2]
[406700034,1772099436181,-553.9571256,0.0001,2]
[406700035,1772099436191,-151.0,0.0001,2]
[406700036,1772099436200,-500.0,0.0001,2]
[406700037,1772099436209,-200.0,0.0001,2]
[406700038,1772099436219,-151.0,0.0001,2]
[406700039,1772099436228,-151.0,0.0001,2]
[406700040,1772099436237,-151.0,0.0001,2]
[406700041,1772099436247,-151.0,0.0001,2]
[406700042,1772099436257,-151.0,0.0001,2]
[406700043,1772099436267,-151.0,0.0001,2]
[406700044,1772099436277,-151.0,0.0001,2]
[406700045,1772099436287,-151.0,0.0001,2]
[406700046,1772099436296,-151.0,0.0001,2]
[406700047,1772099436306,-151.0,0.0001,2]
[406700048,1772099436316,-1186.11241235,0.0001,2]
[406700049,1772099436327,-196.01867,0.0001,2]
[406700050,1772099436337,-196.01868,0.0001,2]
[406700051,1772099436347,-196.01868,0.0001,2]
[406700052,1772099436357,-196.01867,0.0001,2]
[406700053,1772099436367,-196.01868,0.0001,2]
[406700054,1772099436378,-1070.62307231,0.0001,2]
[406700055,1772099436388,-196.01868,0.0001,2]
[406700056,1772099436398,-433.0,0.0001005,2]
[406700057,1772099436408,-5531.0,0.000101,3]
[406700058,1772099436417,-5531.0,0.000101,5]
[406700059,1772099436427,-1569.43003623,0.0001017,2]
[406700060,1772099436437,-3292.0,0.00010207,2]
[406700061,1772099436447,-166.29,0.00010274,2]
[406700062,1772099436459,-500.0,0.000103,2]
[406700063,1772099436468,-572.5782841,0.000103,2]
[406700064,1772099436478,-500.0,0.000103,2]
[406700065,1772099436488,-848.80379452,0.000103,2]
[406700066,1772099436499,-500.0,0.000103,2]
[406700067,1772099436513,-500.0,0.000103,2]
[406700068,1772099436523,-500.0,0.000103,2]
[406700069,1772099436532,-500.0,0.000103,2]
[406700070,1772099436542,-576.70003005,0.000103,2]
[406700071,1772099436552,-632.45598044,0.000103,2]
[406700072,1772099436562,-500.0,0.000103,2]
[406700073,1772099436572,-500.0,0.000103,2]
[406700074,1772099436581,-500.0,0.000103,2]
[406700075,1772099436591,-653.71723476,0.000103,2]
[406700076,1772099436601,-524.23267642,0.000103,2]
[406700077,1772099436611,-500.0,0.000103,2]
[406700078,1772099436620,-500.0,0.000103,2]
[406700079,1772099436631,-785.68353372,0.000103,2]
[406700080,1772099436641,-500.0,0.000103,2]
[406700081,1772099436650,-500.0,0.000103,2]
[406700082,1772099436660,-500.0,0.000103,2]
[406700083,1772099436670,-500.0,0.000103,2]
[406700084,1772099436680,-500.0,0.000103,2]
[406700085,1772099436690,-791.66917409,0.000103,2]
[406700086,1772099436700,-500.0,0.000103,2]
[406700087,1772099436711,-500.0,0.000103,2]
[406700088,1772099436721,-500.0,0.000103,2]
[406700089,1772099436730,-500.0,0.000103,2]
[406700090,1772099436740,-391.58276626,0.000103,2]
[406700091,1772099436754,-108.41723374,0.000103,2]
[406700092,1772099436763,-500.0,0.000103,2]
[406700093,1772099436773,-500.0,0.000103,2]
[406700094,1772099436783,-500.0,0.000103,2]
[406700095,1772099436793,-500.0,0.000103,2]
[406700096,1772099436803,-705.08270808,0.000103,2]
[406700097,1772099436813,-804.72276255,0.000103,2]
[406700098,1772099436822,-500.0,0.000103,2]
[406700099,1772099436832,-500.0,0.000103,2]
[406700100,1772099436842,-841.12614191,0.000103,2]
[406700101,1772099436852,-500.0,0.000103,2]
[406700102,1772099436862,-500.0,0.000103,2]
[406700103,1772099436872,-500.0,0.000103,2]
[406700104,1772099436882,-500.0,0.000103,2]
[406700105,1772099436892,-500.0,0.000103,2]
[406700106,1772099436901,-861.07776578,0.000103,2]
[406700107,1772099436911,-500.0,0.000103,2]
[406700108,1772099436921,-500.0,0.000103,2]
[406700109,1772099436931,-500.0,0.000103,2]
[406700110,1772099436940,-500.0,0.000103,2]
[406700111,1772099436950,-500.0,0.000103,2]
[406700112,1772099436960,-500.0,0.000103,2]
[406700113,1772099436970,-678.99558819,0.000103,2]
[406700114,1772099436979,-500.0,0.000103,2]
[406700115,1772099436989,-615.5072787,0.000103,2]
[406700116,1772099436998,-619.49571842,0.000103,2]
[406700117,1772099437007,-500.0,0.000103,2]
[406700118,1772099437017,-500.0,0.000103,2]
[406700119,1772099437026,-585.91467153,0.000103,2]
[406700120,1772099437035,-500.0,0.000103,2]
[406700121,1772099437044,-500.0,0.000103,2]
[406700122,1772099437053,-580.04221442,0.000103,2]
[406700123,1772099437063,-500.0,0.000103,2]
[406700124,1772099437072,-500.0,0.000103,2]
[406700125,1772099437082,-500.0,0.000103,2]
[406700126,1772099437090,-965.36722403,0.000103,2]
[406700127,1772099437100,-790.48720054,0.000103,2]
[406700128,1772099437109,-500.0,0.000103,2]
[406700129,1772099437118,-1000.0,0.00010399,2]
[406700130,1772099437128,-294.49398959,0.00010416,2]
[406700131,1772099437138,-151.10043624,0.00010427,2]
[406700132,1772099437147,-512.00477836,0.00010452,2]
[406700133,1772099437160,-899.18522164,0.00010452,2]
[406700134,1772099437169,-150.99,0.00010475,2]
[406700135,1772099437178,-999.99,0.00010475,2]
[406700136,1772099437188,-61.56548195,0.00010475,2]
[406700137,1772099437203,-89.42451805,0.00010475,2]
[406700138,1772099437213,-253.79706797,0.00010475,2]
[406700139,1772099437229,-4091.94786815,0.00010475,2]
[406700140,1772099437252,-846.46166189,0.00010475,2]
[406700145,1772099438333,-4807.78340199,0.00010475,2]
[406700146,1772099438344,-299.99,0.00010475,2]
[406700147,1772099438353,-8675.40893367,0.00010489,2]
[406700158,1772099440483,-490475.70862723,0.00010489,2]
[406700159,1772099440495,-155.0,0.00010516,2]
[406700160,1772099440509,-203.20755131,0.00010548,2]
[406700161,1772099440522,-990.0,0.000106,2]
[406700162,1772099440532,-369.540161,0.00010699,2]
[406700163,1772099440542,-369.540161,0.00010699,2]
[406700164,1772099440551,-369.540161,0.00010699,2]
[406700165,1772099440561,-369.540161,0.00010699,2]
[406700166,1772099440571,-151.0,0.00010699,2]
[406700167,1772099440581,-204.036797,0.00010699,2]
[406700168,1772099440590,-204.036797,0.00010699,2]
[406700169,1772099440600,-204.036797,0.00010699,2]
[406700170,1772099440610,-204.036797,0.00010699,2]
[406700171,1772099440619,-151.0,0.00010699,2]
[406700172,1772099440629,-250.308914,0.00010699,2]
[406700173,1772099440639,-60548.3847841,0.00010699,2]
[406700174,1772099440648,-1000.0,0.0001077,2]
[406700175,1772099440658,-500.75663163,0.00010829,2]
[406700176,1772099440668,-164.76814521,0.00010829,2]
[406700177,1772099440678,-500.06072906,0.00010829,2]
[406700178,1772099440687,-500.93369528,0.00010829,2]
[406700179,1772099440697,-500.08820078,0.00010829,2]
[406700180,1772099440707,-167.01035166,0.00010829,2]
[406700181,1772099440717,-500.23170611,0.00010829,2]
[406700182,1772099440727,-501.10602996,0.00010829,2]
[406700183,1772099440737,-500.09057479,0.00010829,2]
[406700184,1772099440747,-500.0,0.00010829,2]
[406700185,1772099440757,-500.22029316,0.00010829,2]
[406700186,1772099440766,-500.0,0.00010829,2]
[406700187,1772099440776,-500.08836173,0.00010829,2]
[406700188,1772099440786,-500.0,0.00010829,2]
[406700189,1772099440796,-610.55972537,0.00010829,2]
[406700190,1772099440806,-500.08514565,0.00010829,2]
[406700191,1772099440816,-500.0,0.00010829,2]
[406700192,1772099440826,-500.78794822,0.00010829,2]
[406700193,1772099440837,-500.0,0.00010829,2]
[406700194,1772099440848,-500.49462905,0.00010829,2]
[406700195,1772099440859,-503.65630959,0.00010829,2]
[406700196,1772099440869,-500.0,0.00010829,2]
[406700197,1772099440879,-500.65480064,0.00010829,2]
[406700198,1772099440889,-165.39582799,0.00010829,2]
[406700199,1772099440899,-500.95701525,0.00010829,2]
[406700200,1772099440909,-500.0,0.00010829,2]
[406700201,1772099440920,-500.0,0.00010829,2]
[406700202,1772099440929,-500.35476921,0.00010829,2]
[406700203,1772099440939,-588.93145599,0.00010829,2]
[406700204,1772099440949,-240.05255331,0.00010829,2]
[406700205,1772099440959,-500.0,0.00010829,2]
[406700206,1772099440968,-503.76454866,0.00010829,2]
[406700207,1772099440978,-500.82940591,0.00010829,2]
[406700208,1772099440987,-367.75891248,0.00010859,2]
[406700209,1772099440997,-1833.85447521,0.00010877,2]
[406700210,1772099441006,-4890.20390114,0.000109,2]
[406700211,1772099441016,-4890.20390113,0.000109,2]
[406700212,1772099441026,-1040.965,0.00010907,2]
[406700213,1772099441036,-693.94657191,0.00010934,2]
[406700214,1772099441046,-150.0,0.00010959,2]
[406700215,1772099441056,-166.66,0.00010959,2]
[406700216,1772099441066,-14929.04,0.00010959,2]
[406700217,1772099441078,-151.0,0.00010959,2]
[406700218,1772099441087,-151.0,0.00010959,2]
[406700219,1772099441096,-151.0,0.00010959,2]
[406700220,1772099441106,-152.838506,0.00010959,2]
[406700221,1772099441115,-151.0,0.00010959,2]
[406700222,1772099441125,-153.208343,0.00010959,2]
[406700223,1772099441134,-1000.0,0.0001097,2]
[406700224,1772099441143,-631.8277679,0.0001097,2]